bitfinex/quotes_BTCUSD_20250617
["timestamp","ask_amount","ask_price","bid_price","bid_amount"]
[1750174150441,0.92351403,104350.0,104340.0,0.09928176]
[1750174150673,0.69961091,104350.0,104340.0,0.09928176]
[1750174150928,0.58306763,104350.0,104340.0,0.09928176]
[1750174151149,0.90434776,104350.0,104340.0,0.09928176]
[1750174151374,0.66390238,104350.0,104340.0,0.09928176]
[1750174151599,0.97210833,104350.0,104340.0,0.09928176]
[1750174151842,0.69124571,104350.0,104340.0,0.09928176]
[1750174152544,0.50916525,104350.0,104340.0,0.30054685]
[1750174152776,0.44,104350.0,104340.0,0.31013081]
[1750174152995,0.74002787,104350.0,104340.0,0.39229835]
[1750174153221,0.79961082,104350.0,104340.0,0.38271467]
[1750174153441,0.79961072,104350.0,104340.0,0.34991467]
[1750174153687,0.94127403,104350.0,104340.0,0.09928176]
[1750174153906,0.99127403,104350.0,104340.0,0.09928176]
[1750174154130,0.65082865,104350.0,104340.0,0.09928176]
[1750174154367,0.98169127,104350.0,104340.0,0.09928176]
[1750174154825,0.70082865,104350.0,104340.0,0.09928176]
[1750174155051,1.03169127,104350.0,104340.0,0.09928176]
[1750174155272,0.70082865,104350.0,104340.0,0.09928176]
[1750174155497,0.45916543,104350.0,104340.0,0.36294685]
[1750174155717,0.45916525,104350.0,104340.0,0.37253062]
[1750174155940,0.61041096,104350.0,104340.0,0.16168176]
[1750174156165,0.4187482,104350.0,104340.0,0.37253044]
[1750174156384,0.47833133,104350.0,104340.0,0.37253053]
[1750174156610,0.4187482,104350.0,104340.0,0.35031421]
[1750174156833,0.80919386,104350.0,104340.0,0.34073053]
[1750174157314,0.46874829,104350.0,104340.0,0.3503143]
[1750174157544,0.40916525,104350.0,104340.0,0.35031439]
[1750174157769,0.74002787,104350.0,104340.0,0.53967439]
[1750174157959,0.45916525,104350.0,104340.0,0.54925798]
[1750174158223,0.39,104350.0,104340.0,0.59649892]
[1750174158449,0.39,104350.0,104340.0,0.60608232]
[1750174158672,0.73044501,104350.0,104340.0,0.60608232]
[1750174159119,0.40916497,104350.0,104340.0,0.36880365]
[1750174159339,0.79961035,104350.0,104340.0,0.35527147]
[1750174159566,0.79002759,104350.0,104340.0,0.34383837]
[1750174159786,0.79961044,104350.0,104340.0,0.33425506]
[1750174160025,0.79961035,104350.0,104340.0,0.36645497]
[1750174160243,0.79961035,104350.0,104340.0,0.37603837]
[1750174160430,0.46874773,104350.0,104340.0,0.36645497]
[1750174160690,0.46874773,104350.0,104340.0,0.37603837]
[1750174160929,0.78044501,104350.0,104340.0,0.37603837]
[1750174161186,0.40916506,104350.0,104340.0,0.36645506]
[1750174161423,0.75919348,104350.0,104340.0,0.33274685]
[1750174161641,5.76877652,104350.0,104340.0,0.35191448]
[1750174161867,5.4379139,104350.0,104340.0,0.34233071]
[1750174162086,5.79961044,104350.0,104340.0,0.36149816]
[1750174162511,5.80919339,104350.0,104340.0,0.37108175]
[1750174162775,5.75919339,104350.0,104340.0,0.37108175]
[1750174162991,5.37833151,104350.0,104340.0,0.33274685]
[1750174163219,5.40916506,104350.0,104340.0,0.35191439]
[1750174163454,5.74002768,104350.0,104340.0,0.39379798]
[1750174163693,5.41874791,104350.0,104340.0,0.40338148]
[1750174163917,5.74002768,104350.0,104340.0,0.40338148]
[1750174164139,5.74961053,104350.0,104340.0,0.38421393]
[1750174164352,5.40916506,104350.0,104340.0,0.57361374]
[1750174164568,5.69002768,104350.0,104340.0,0.57361384]
[1750174164780,5.40916506,104350.0,104340.0,0.58319724]
[1750174165009,5.69002759,104350.0,104340.0,0.58319724]
[1750174165223,5.72086262,104350.0,104340.0,0.58319724]
[1750174165430,5.39958239,104350.0,104340.0,0.58319724]
[1750174165647,5.73044492,104350.0,104340.0,0.58319724]
[1750174165873,5.74002731,104350.0,104340.0,0.58319724]
[1750174166101,5.74960998,104350.0,104340.0,0.58319724]
[1750174166340,5.74002731,104350.0,104340.0,0.58319724]
[1750174166567,5.74960989,104350.0,104340.0,0.58319724]
[1750174166777,5.74002731,104350.0,104340.0,0.58319724]
[1750174166993,5.73044492,104350.0,104340.0,0.58319724]
[1750174167210,5.69002741,104350.0,104340.0,0.58319724]
[1750174167433,5.74961008,104350.0,104340.0,0.58319724]
[1750174167708,5.74961008,104350.0,104340.0,0.37463034]
[1750174167933,5.74961008,104350.0,104340.0,0.38421384]
[1750174168162,5.69002741,104350.0,104340.0,0.58243724]
[1750174168384,5.75919284,104350.0,104340.0,0.38421384]
[1750174168575,5.74960999,104350.0,104340.0,0.39379724]
[1750174168808,5.74960999,104350.0,104340.0,0.38421384]
[1750174169035,5.74960999,104350.0,104340.0,0.54997733]
[1750174169036,5.75919275,104350.0,104340.0,0.54997733]
[1750174169702,5.70919275,104350.0,104340.0,0.36149733]
[1750174169925,5.75919275,104350.0,104340.0,0.50787374]
[1750174170375,5.75919275,104350.0,104340.0,0.54007374]
[1750174170599,0.75919275,104350.0,104340.0,0.54007374]
[1750174170815,0.75919275,104350.0,104340.0,0.2879228]
[1750174171001,0.75919275,104350.0,104340.0,0.50467374]
[1750174171271,0.7400275,104350.0,104340.0,0.50467374]
[1750174171502,0.74961026,104350.0,104340.0,0.50467384]
[1750174172402,0.41874764,104350.0,104340.0,0.49509034]
[1750174172614,0.74961026,104350.0,104340.0,0.51425724]
[1750174172873,0.74961026,104350.0,104340.0,0.50455393]
[1750174173305,0.75919321,104350.0,104340.0,0.31667393]
[1750174173521,0.961691,104350.0,104340.0,0.09624176]
[1750174173744,0.81071091,104350.0,104340.0,0.30709043]
[1750174173964,0.81071091,104350.0,104340.0,0.29750666]
[1750174174193,0.99279109,104350.0,104340.0,0.09624176]
[1750174174412,1.18003109,104350.0,104340.0,0.09624176]
[1750174174661,0.02875012,104340.0,104330.0,0.41711769]
[1750174174848,0.36919642,104340.0,104330.0,0.31619504]
[1750174175102,0.37878102,104340.0,104330.0,0.51273973]
[1750174175382,0.37878102,104340.0,104330.0,0.31619513]
[1750174175604,0.35002952,104340.0,104330.0,0.52232396]
[1750174175820,0.35961329,104340.0,104330.0,0.52232396]
[1750174176016,0.35002952,104340.0,104330.0,0.52432396]
[1750174176235,0.35961329,104340.0,104330.0,0.51932405]
[1750174176452,0.35961329,104340.0,104330.0,0.5193234]
[1750174176683,0.34044593,104340.0,104330.0,0.5223234]
[1750174176904,0.35961311,104340.0,104330.0,0.5223234]
[1750174177345,0.01916681,104340.0,104330.0,0.5223234]
[1750174177578,0.35002952,104340.0,104330.0,0.5223234]
[1750174177825,0.01916681,104340.0,104330.0,0.5223234]
[1750174178022,0.34044593,104340.0,104330.0,0.5223234]
[1750174178255,0.39,104350.0,104340.0,0.22043208]
[1750174178486,0.72086262,104350.0,104340.0,0.31667384]
[1750174178707,0.73044511,104350.0,104340.0,0.31667384]
[1750174178934,0.73044501,104350.0,104340.0,0.31667384]
[1750174179178,0.64586267,104350.0,104340.0,0.09624176]
[1750174179402,0.01916653,104340.0,104330.0,0.22753714]
[1750174179626,0.35002915,104340.0,104330.0,0.3207789]
[1750174179859,0.38102915,104340.0,104330.0,0.31119458]
[1750174180079,0.43299623,104340.0,104330.0,0.31119458]
[1750174180304,0.43299614,104340.0,104330.0,0.32077899]
[1750174180522,0.09254993,104340.0,104330.0,0.32077899]
[1750174180741,0.43299623,104340.0,104330.0,0.32077899]
[1750174180987,0.43299614,104340.0,104330.0,0.33336331]
[1750174181214,0.43299614,104340.0,104330.0,0.32577899]
[1750174181428,0.11171729,104340.0,104330.0,0.32577899]
[1750174181648,0.10213352,104340.0,104330.0,0.33536331]
[1750174182088,0.43299614,104340.0,104330.0,0.33536331]
[1750174182090,0.10213352,104340.0,104330.0,0.33536331]
[1750174182328,0.43299614,104340.0,104330.0,0.32577899]
[1750174182550,0.11171729,104340.0,104330.0,0.30661007]
[1750174182781,0.44257991,104340.0,104330.0,0.3257788]
[1750174183010,0.10213407,104340.0,104330.0,0.32577899]
[1750174183240,0.43299669,104340.0,104330.0,0.32577899]
[1750174183461,0.44258055,104340.0,104330.0,0.31619458]
[1750174183920,0.43299669,104340.0,104330.0,0.30661025]
[1750174184156,0.43299669,104340.0,104330.0,0.29702547]
[1750174184370,0.42341292,104340.0,104330.0,0.30661016]
[1750174184586,0.44258083,104340.0,104330.0,0.30661016]
[1750174184805,0.29381594,104340.0,104330.0,0.29702547]
[1750174185018,0.62467856,104340.0,104330.0,0.30661025]
[1750174185264,0.62467856,104340.0,104330.0,0.29702547]
[1750174185481,0.29381594,104340.0,104330.0,0.29702547]
[1750174185702,0.62467856,104340.0,104330.0,0.29702547]
[1750174185934,0.61509516,104340.0,104330.0,0.11082663]
[1750174186185,1.32637419,104340.0,104330.0,0.005]
[1750174186418,1.37637419,104340.0,104330.0,0.005]
[1750174187098,1.37637419,104340.0,104330.0,0.003]
[1750174187336,0.23358419,104330.0,104320.0,0.20134319]
[1750174187563,0.1025382,104330.0,104320.0,0.30717047]
[1750174187793,0.02875333,104330.0,104320.0,0.31675571]
[1750174188014,0.35961595,104330.0,104320.0,0.3167559]
[1750174188228,0.0383382,104330.0,104320.0,0.3167559]
[1750174188653,0.85495182,104340.0,104320.0,0.30717001]
[1750174188655,0.03308018,104330.0,104320.0,0.31875516]
[1750174188877,0.01916846,104330.0,104320.0,0.30917001]
[1750174189108,0.00958414,104330.0,104320.0,0.31875525]
[1750174189322,0.01916837,104330.0,104320.0,0.32175525]
[1750174189553,0.86453587,104340.0,104330.0,0.20128419]
[1750174189783,0.00958414,104330.0,104320.0,0.32175525]
[1750174190032,0.34044676,104330.0,104320.0,0.32175525]
[1750174190264,0.88742328,104340.0,104320.0,0.32175525]
[1750174190497,0.69574224,104340.0,104330.0,0.22045339]
[1750174190753,1.01702081,104340.0,104330.0,0.22145339]
[1750174190965,1.01702081,104340.0,104330.0,0.20328428]
[1750174191185,0.98552044,104340.0,104330.0,0.30911064]
[1750174191399,0.48262463,104340.0,104330.0,0.30811064]
[1750174191627,0.48262454,104340.0,104330.0,0.32727947]
[1750174191860,0.48262454,104340.0,104330.0,0.32727956]
[1750174192079,0.43205736,104340.0,104330.0,0.33586388]
[1750174192313,0.34958331,104340.0,104330.0,0.33586388]
[1750174192542,0.34,104340.0,104330.0,0.33586388]
[1750174192764,0.69002924,104340.0,104330.0,0.36886388]
[1750174192991,0.09138239,104350.0,104340.0,0.21084849]
[1750174193247,0.36874783,104350.0,104340.0,0.30709025]
[1750174193468,0.42833059,104350.0,104340.0,0.30709025]
[1750174193931,0.37833059,104350.0,104340.0,0.30709025]
[1750174194150,0.76019321,104350.0,104340.0,0.31667375]
[1750174194367,0.76019321,104350.0,104340.0,0.32625715]
[1750174194368,0.70061026,104350.0,104340.0,0.32625715]
[1750174194597,0.75061026,104350.0,104340.0,0.51713715]
[1750174194847,0.76019321,104350.0,104340.0,0.49797025]
[1750174195077,0.76019321,104350.0,104340.0,0.51713715]
[1750174195295,0.75061026,104350.0,104340.0,0.51713715]
[1750174195525,0.001,104350.0,104340.0,0.92614062]
[1750174195740,0.001,104350.0,104340.0,0.595278]
[1750174196230,0.001,104350.0,104340.0,0.594718]
[1750174196456,0.36308264,104360.0,104340.0,0.2851345]
[1750174196680,0.03222002,104360.0,104350.0,0.22041114]
[1750174196904,0.36308264,104360.0,104350.0,0.32623548]
[1750174197135,0.36308264,104360.0,104350.0,0.3166529]
[1750174197343,0.38224678,104360.0,104350.0,0.30707023]
[1750174197583,0.3726654,104360.0,104350.0,0.30707032]
[1750174198236,0.37266522,104360.0,104350.0,0.30707032]
[1750174198457,0.36308319,104360.0,104350.0,0.32623539]
[1750174198683,0.35350117,104360.0,104350.0,0.34077624]
[1750174198916,0.00347523,104360.0,104350.0,0.40337624]
[1750174199361,0.00347523,104360.0,104350.0,0.40341624]
[1750174199580,0.00347523,104360.0,104350.0,0.15441624]
[1750174199825,0.00347523,104360.0,104350.0,0.35566195]
[1750174200058,0.00347523,104360.0,104350.0,0.35666195]
[1750174200748,4.04856917,104300.0,104290.0,5.63327617]
[1750174200975,3.95873159,104300.0,104290.0,5.31869666]
[1750174201200,3.95873159,104300.0,104290.0,1.51900804]
[1750174201677,3.95873159,104300.0,104290.0,1.47003104]
[1750174201908,3.95873159,104300.0,104290.0,1.25932204]
[1750174202136,3.95920653,104300.0,104290.0,1.02302404]
[1750174202364,3.95920653,104300.0,104290.0,1.00896699]
[1750174202593,3.95920653,104300.0,104290.0,1.09792699]
[1750174202832,3.95920653,104300.0,104290.0,0.81932699]
[1750174203057,3.95920653,104300.0,104290.0,1.00916699]
[1750174203294,3.96420653,104300.0,104290.0,0.42706437]
[1750174203522,3.96420653,104300.0,104290.0,1.00908699]
[1750174203744,3.97220653,104300.0,104290.0,1.01008699]
[1750174204046,3.97220653,104300.0,104290.0,0.83386784]
[1750174204047,3.96420653,104300.0,104290.0,0.83386784]
[1750174204268,3.96420653,104300.0,104290.0,0.92207515]
[1750174204490,3.96120653,104300.0,104290.0,1.25293777]
[1750174204950,3.96120653,104300.0,104290.0,1.26747862]
[1750174205436,3.96120653,104300.0,104290.0,0.936616]
[1750174205659,3.96120653,104300.0,104290.0,1.36362784]
[1750174206103,3.96220653,104300.0,104290.0,1.36362784]
[1750174208452,3.96220653,104300.0,104290.0,1.26787862]
[1750174210778,3.94662414,104300.0,104290.0,1.43099862]
[1750174211479,3.92481013,104300.0,104290.0,1.76186124]
[1750174211742,3.63506827,104300.0,104290.0,1.76186124]
[1750174212170,3.63406827,104300.0,104290.0,1.76186124]
[1750174212380,3.63406827,104300.0,104290.0,1.43099862]
[1750174212602,3.63806827,104300.0,104290.0,1.43099862]
[1750174213026,3.64306827,104300.0,104290.0,1.43199862]
[1750174213237,3.64806827,104300.0,104290.0,1.43099862]
[1750174213669,3.64806827,104300.0,104290.0,1.45977862]
[1750174213879,3.64806827,104300.0,104290.0,1.46077862]
[1750174213880,3.65606827,104300.0,104290.0,1.46077862]
[1750174215213,3.65606827,104300.0,104290.0,1.129916]
[1750174215424,3.65606827,104300.0,104290.0,1.46077862]
[1750174215690,3.65606827,104300.0,104290.0,1.129916]
[1750174215908,3.65606827,104300.0,104290.0,1.413634]
[1750174216125,3.65606827,104300.0,104290.0,1.74449662]
[1750174216346,3.65606827,104300.0,104290.0,1.49393662]
[1750174216567,3.65606827,104300.0,104290.0,1.74629662]
[1750174217235,3.65606827,104300.0,104290.0,1.415434]
[1750174217455,3.65606827,104300.0,104290.0,1.74629662]
[1750174218587,3.60953913,104300.0,104290.0,1.415434]
[1750174218805,3.5829459,104300.0,104290.0,1.415434]
[1750174219029,3.51046337,104300.0,104290.0,2.22715924]
[1750174219247,3.46251888,104300.0,104290.0,2.22715924]
[1750174219496,3.40751888,104300.0,104290.0,2.22715924]
[1750174219735,3.40175387,104300.0,104290.0,2.22715924]
[1750174219955,3.40175387,104300.0,104290.0,1.49393662]
[1750174220177,3.40175387,104300.0,104290.0,1.74645662]
[1750174220623,3.38617386,104300.0,104290.0,1.74645662]
[1750174221103,3.38617386,104300.0,104290.0,1.74637662]
[1750174221336,3.38617386,104300.0,104290.0,1.415394]
[1750174221565,3.38617386,104300.0,104290.0,1.07875862]
[1750174221784,3.38617386,104300.0,104290.0,0.686496]
[1750174222001,3.38617386,104300.0,104290.0,0.938776]
[1750174222217,3.38617386,104300.0,104290.0,0.73335515]
[1750174222432,0.02447494,104300.0,104290.0,1.04414533]
[1750174222661,0.02447494,104300.0,104290.0,0.69856065]
[1750174222875,0.02447494,104300.0,104290.0,0.57397505]
[1750174223107,0.02447494,104300.0,104290.0,0.90483767]
[1750174223335,0.02447494,104300.0,104290.0,0.57397505]
[1750174223600,0.08847494,104300.0,104290.0,0.63801682]
[1750174223835,0.08847494,104300.0,104290.0,0.4989542]
[1750174224043,0.26711059,104320.0,104310.0,0.23503633]
[1750174224044,0.07615059,104320.0,104310.0,0.23503633]
[1750174224269,0.11540608,104320.0,104310.0,0.11078261]
[1750174224498,0.12499123,104320.0,104310.0,0.30715144]
[1750174224742,0.11540608,104320.0,104310.0,0.33591038]
[1750174224961,0.22055426,104330.0,104320.0,0.0095857]
[1750174225178,0.00958506,104320.0,104310.0,0.32632285]
[1750174225410,0.5509692,104330.0,104320.0,0.20130349]
[1750174225641,0.00958506,104320.0,104310.0,0.21090858]
[1750174225891,0.21448947,104330.0,104320.0,0.01917149]
[1750174226113,0.01917039,104320.0,104310.0,0.2264953]
[1750174226312,0.0191703,104320.0,104310.0,0.2264953]
[1750174226527,0.34044768,104320.0,104310.0,0.2264953]
[1750174226751,0.21448975,104330.0,104310.0,0.23608128]
[1750174226965,0.0629,104320.0,104310.0,0.2264953]
[1750174227691,0.0644,104310.0,104300.0,0.01454085]
[1750174227919,0.0644,104310.0,104300.0,0.33129923]
[1750174227920,0.07398598,104310.0,104300.0,0.33129923]
[1750174228140,0.07398598,104310.0,104300.0,0.32171215]
[1750174228363,0.0644,104310.0,104300.0,0.33129923]
[1750174229277,0.0644,104310.0,104300.0,0.33929923]
[1750174230004,0.0664,104310.0,104300.0,0.36229923]
[1750174231827,0.0664,104310.0,104300.0,0.36233923]
[1750174232711,0.0664,104310.0,104300.0,0.69320185]
[1750174233148,0.0664,104310.0,104300.0,0.36233923]
[1750174235699,0.0664,104310.0,104300.0,0.69320185]
[1750174237081,0.0664,104310.0,104300.0,0.36233923]
[1750174237522,0.05081677,104310.0,104300.0,0.69320185]
[1750174237958,0.034,104310.0,104300.0,0.69320185]
[1750174238619,0.034,104310.0,104300.0,0.36233923]
[1750174238843,0.034,104310.0,104300.0,0.69320185]
[1750174239077,0.034,104310.0,104300.0,0.36233923]
[1750174239294,0.034,104310.0,104300.0,0.69320185]
[1750174239736,0.034,104310.0,104300.0,0.36233923]
[1750174240007,0.034,104310.0,104300.0,0.97236342]
[1750174240223,0.034,104310.0,104300.0,0.6415008]
[1750174240664,0.0652,104310.0,104300.0,0.58181923]
[1750174242429,0.034,104310.0,104300.0,0.58181923]
[1750174243102,0.034,104310.0,104300.0,0.91268185]
[1750174243320,0.0657,104310.0,104300.0,0.91268185]
[1750174244226,0.0657,104310.0,104300.0,0.58181923]
[1750174244900,0.0657,104310.0,104300.0,0.91268185]
[1750174245570,0.0657,104310.0,104300.0,0.58181923]
[1750174247569,0.0657,104310.0,104300.0,0.36233923]
[1750174247791,0.39656262,104310.0,104300.0,0.36233923]
[1750174248689,1.08659747,104310.0,104300.0,0.03104]
[1750174248952,1.49948359,104310.0,104300.0,0.03104]
[1750174249169,0.82817201,104310.0,104300.0,0.03104]
[1750174249385,1.39374803,104310.0,104300.0,0.03104]
[1750174249616,0.73202279,104310.0,104300.0,0.03104]
[1750174249839,1.39174803,104310.0,104300.0,4e-05]
[1750174250057,1.39174803,104310.0,104300.0,0.01304]
[1750174250058,1.39274803,104310.0,104300.0,0.01304]
[1750174250301,0.82717201,104310.0,104300.0,0.01504]
[1750174250519,1.08519725,104310.0,104300.0,0.01504]
[1750174250981,0.98904803,104310.0,104300.0,0.01504]
[1750174251425,0.91201271,104310.0,104300.0,0.01504]
[1750174251610,0.58103009,104310.0,104300.0,0.01504]
[1750174252151,0.91189271,104310.0,104300.0,0.01504]
[1750174252432,1.33899709,104310.0,104300.0,0.01504]
[1750174252907,1.02811533,104310.0,104300.0,0.01504]
[1750174253128,1.24207533,104310.0,104300.0,0.01504]
[1750174253344,0.97228847,104310.0,104300.0,0.01504]
[1750174253562,0.77792585,104310.0,104300.0,0.20679455]
[1750174253790,0.99172585,104310.0,104300.0,0.02462772]
[1750174254018,0.50160288,104310.0,104300.0,0.23555707]
[1750174254236,0.53618877,104310.0,104300.0,0.24514424]
[1750174254460,0.08167232,104310.0,104300.0,0.24514424]
[1750174254711,0.63560129,104310.0,104300.0,0.25473132]
[1750174254922,0.72018791,104310.0,104300.0,0.25473132]
[1750174255135,0.60285713,104310.0,104300.0,0.25473132]
[1750174255370,0.73163051,104310.0,104300.0,0.25473132]
[1750174255584,0.6025682,104310.0,104300.0,0.24514424]
[1750174255800,0.33609209,104310.0,104300.0,0.23555707]
[1750174256028,1.21079483,104310.0,104300.0,0.01504]
[1750174256243,0.54906959,104310.0,104300.0,0.01504]
[1750174256455,1.29422632,104310.0,104300.0,0.01504]
[1750174256678,0.9633637,104310.0,104300.0,0.01504]
[1750174256903,1.29422632,104310.0,104300.0,0.01504]
[1750174257335,1.21071483,104310.0,104300.0,0.01504]
[1750174258660,1.27371483,104310.0,104300.0,0.01504]
[1750174260190,0.74750285,104310.0,104300.0,0.01504]
[1750174260658,1.40922809,104310.0,104300.0,0.01504]
[1750174262219,0.74750285,104310.0,104300.0,0.01504]
[1750174262444,1.19614809,104310.0,104300.0,0.01504]
[1750174262675,1.40750809,104310.0,104300.0,0.01504]
[1750174262910,0.05,104280.0,104250.0,4e-05]
[1750174263134,0.11728883,104280.0,104270.0,0.22105491]
[1750174263352,0.08419693,104280.0,104270.0,0.22105491]
[1750174263579,0.060003,104290.0,104280.0,0.22055891]
[1750174263804,0.028803,104290.0,104280.0,0.22055891]
[1750174264029,0.00958781,104290.0,104280.0,0.220559]
[1750174264276,0.61388514,104300.0,104270.0,0.20682551]
[1750174264504,0.33086262,104280.0,104270.0,0.21146425]
[1750174264755,0.16896519,104290.0,104280.0,0.2013808]
[1750174264978,0.69459723,104290.0,104280.0,0.20138089]
[1750174265201,0.05916703,104280.0,104270.0,0.00047494]
[1750174265417,0.72883262,104280.0,104270.0,0.20187505]
[1750174265716,0.21576823,104280.0,104270.0,0.22105528]
[1750174265977,0.54663076,104280.0,104270.0,0.23064521]
[1750174266305,0.55303461,104280.0,104270.0,0.22105528]
[1750174266308,0.9397182,104280.0,104270.0,0.23064512]
[1750174266569,0.44961884,104280.0,104270.0,0.23064512]
[1750174266808,0.77012013,104280.0,104270.0,0.22105528]
[1750174267026,1.04376578,104280.0,104270.0,0.21346526]
[1750174267223,1.0351764,104280.0,104270.0,0.22546526]
[1750174267445,0.94373298,104280.0,104270.0,0.21587505]
[1750174267659,1.26500613,104280.0,104270.0,0.01447494]
[1750174267881,1.25541657,104280.0,104270.0,0.01447494]
[1750174268526,1.72704406,104280.0,104270.0,0.01447494]
[1750174268747,1.69165833,104280.0,104270.0,0.01447494]
[1750174268961,1.78780755,104280.0,104270.0,0.01447494]
[1750174269238,1.78780755,104280.0,104270.0,0.01247494]
[1750174269239,1.12608231,104280.0,104270.0,0.01247494]
[1750174269438,1.78680755,104280.0,104270.0,0.00147494]
[1750174269865,1.71280755,104280.0,104270.0,0.00447494]
[1750174270078,1.71280755,104280.0,104270.0,0.00347494]
[1750174270079,1.61689833,104280.0,104270.0,0.00347494]
[1750174270296,1.61689833,104280.0,104270.0,0.00047494]
[1750174270297,1.61589833,104280.0,104270.0,0.00047494]
[1750174270714,0.73973309,104280.0,104270.0,0.00047494]
[1750174270939,0.95413309,104280.0,104270.0,0.00047494]
[1750174271155,1.61585833,104280.0,104270.0,0.00047494]
[1750174271378,0.33229733,104280.0,104270.0,0.00047494]
[1750174271592,1.21731995,104280.0,104270.0,0.00047494]
[1750174271871,1.72042433,104280.0,104270.0,0.00847494]
[1750174272041,1.72034433,104280.0,104270.0,0.00847494]
[1750174272250,0.17488161,104260.0,104250.0,0.20147875]
[1750174272492,0.91449059,104260.0,104250.0,4e-05]
[1750174272718,0.91149308,104260.0,104250.0,4e-05]
[1750174273630,0.58163046,104260.0,104250.0,0.01004]
[1750174273857,0.61383046,104260.0,104250.0,0.01004]
[1750174274100,0.80026201,104260.0,104250.0,0.01004]
[1750174274373,0.37936091,104260.0,104250.0,0.22107089]
[1750174274574,0.001,104260.0,104250.0,0.26106238]
[1750174274792,0.03936395,104260.0,104250.0,0.24187875]
[1750174275000,0.03936386,104260.0,104250.0,0.26106275]
[1750174275208,0.24078338,104260.0,104250.0,0.22107089]
[1750174275429,0.22060177,104260.0,104250.0,0.00104]
[1750174275655,0.73623311,104260.0,104250.0,0.00104]
[1750174275857,0.39701074,104260.0,104250.0,0.00104]
[1750174276084,1.58809483,104200.0,104190.0,0.811836]
[1750174276303,1.58809483,104200.0,104190.0,2.20370506]
[1750174276524,0.01918492,104240.0,104230.0,0.22066471]
[1750174276722,0.01918492,104240.0,104220.0,0.21107462]
[1750174276723,0.64685877,104200.0,104190.0,1.27901856]
[1750174276951,0.95867294,104200.0,104190.0,1.48844754]
[1750174277180,0.95867294,104200.0,104190.0,0.97426839]
[1750174277401,0.95434708,104200.0,104190.0,1.29749433]
[1750174277838,0.95834708,104200.0,104190.0,1.08162218]
[1750174278043,0.95834708,104200.0,104190.0,1.63930318]
[1750174278305,0.95834708,104200.0,104190.0,1.00520081]
[1750174278514,0.95834708,104200.0,104190.0,1.63970318]
[1750174278717,0.95834708,104200.0,104190.0,1.63370318]
[1750174279137,0.95834708,104200.0,104190.0,1.06100081]
[1750174279358,0.95834708,104200.0,104190.0,1.25503218]
[1750174279568,0.95834708,104200.0,104190.0,0.96643981]
[1750174279774,0.95834708,104200.0,104190.0,0.96040981]
[1750174279979,0.95834708,104200.0,104190.0,1.71463218]
[1750174280843,0.96934708,104200.0,104190.0,1.71563218]
[1750174281247,0.96934708,104200.0,104190.0,1.72563218]
[1750174281465,0.96934708,104200.0,104190.0,1.38583218]
[1750174281683,0.96934708,104200.0,104190.0,1.19108981]
[1750174281895,0.96934708,104200.0,104190.0,1.60531218]
[1750174282099,0.96934708,104200.0,104190.0,1.19108981]
[1750174282307,0.96934708,104200.0,104190.0,1.60531218]
[1750174282723,0.96934708,104200.0,104190.0,1.19108981]
[1750174282920,0.96934708,104200.0,104190.0,1.60531218]
[1750174283375,0.96934708,104200.0,104190.0,1.19108981]
[1750174283579,0.96934708,104200.0,104190.0,1.60531218]
[1750174284432,0.96934708,104200.0,104190.0,1.19108981]
[1750174284680,0.96934708,104200.0,104190.0,1.60531218]
[1750174285087,0.96934708,104200.0,104190.0,1.19108981]
[1750174285524,0.96934708,104200.0,104190.0,1.60531218]
[1750174286599,0.96934708,104200.0,104190.0,1.19108981]
[1750174286802,0.96934708,104200.0,104190.0,1.60531218]
[1750174287003,0.96934708,104200.0,104190.0,1.62451218]
[1750174287148,0.96934708,104200.0,104190.0,1.19108981]
[1750174287326,0.96934708,104200.0,104190.0,1.60531218]
[1750174287539,0.96934708,104200.0,104190.0,1.19108981]
[1750174287738,0.96934708,104200.0,104190.0,1.60531218]
[1750174288363,0.96934708,104200.0,104190.0,1.19108981]
[1750174288764,0.96934708,104200.0,104190.0,1.18904981]
[1750174289010,0.96934708,104200.0,104190.0,0.97160981]
[1750174289214,0.93191491,104200.0,104190.0,1.60327218]
[1750174289653,0.93191491,104200.0,104190.0,1.18904981]
[1750174289826,0.93191491,104200.0,104190.0,1.60331218]
[1750174290001,0.93191491,104200.0,104190.0,1.18908981]
[1750174290200,0.93191491,104200.0,104190.0,1.60331218]
[1750174291030,0.93191491,104200.0,104190.0,2.05970918]
[1750174291797,0.93191491,104200.0,104190.0,1.57421676]
[1750174292979,0.93191491,104200.0,104190.0,1.15999439]
[1750174293530,0.93191491,104200.0,104190.0,1.57421676]
[1750174294077,0.01547414,104200.0,104190.0,1.57421676]
[1750174294440,0.01547414,104200.0,104190.0,0.94989581]
[1750174294856,0.01547414,104200.0,104190.0,0.31843344]
[1750174295072,0.01547414,104200.0,104190.0,0.86713778]
[1750174295496,0.01547414,104200.0,104190.0,1.19872212]
[1750174296390,0.01547414,104200.0,104190.0,1.55326297]
[1750174297293,0.01547414,104200.0,104190.0,1.58466297]
[1750174297732,0.01547414,104200.0,104190.0,0.961079]
[1750174297953,0.01547414,104200.0,104190.0,1.62424768]
[1750174298165,0.01547414,104200.0,104190.0,1.62400768]
[1750174298376,0.01547414,104200.0,104190.0,0.960839]
[1750174298600,0.01547414,104200.0,104190.0,1.62400768]
[1750174299681,0.01547414,104200.0,104190.0,1.65210768]
[1750174300131,0.01547414,104200.0,104190.0,0.988939]
[1750174300357,0.01547414,104200.0,104190.0,1.62400768]
[1750174300594,0.01547414,104200.0,104190.0,1.67196768]
[1750174300828,0.01547414,104200.0,104190.0,1.37572768]
[1750174301044,0.01547414,104200.0,104190.0,1.25994334]
[1750174301306,0.01547414,104200.0,104190.0,1.59152768]
[1750174301519,0.01547414,104200.0,104190.0,0.928359]
[1750174301719,0.01547414,104200.0,104190.0,1.59152768]
[1750174301935,0.01147414,104200.0,104190.0,1.59152768]
[1750174302364,0.00647414,104200.0,104190.0,1.37572768]
[1750174302587,0.14472473,104200.0,104190.0,0.24258171]
[1750174302809,0.16332083,104200.0,104190.0,0.23378943]
[1750174303035,0.25503492,104200.0,104190.0,0.22419242]
[1750174303249,0.25503492,104200.0,104190.0,0.2433871]
[1750174303250,0.24543818,104200.0,104190.0,0.2433871]
[1750174303460,0.17291738,104200.0,104190.0,0.2433871]
[1750174303712,0.14472473,104200.0,104190.0,0.2413871]
[1750174303899,0.13872473,104200.0,104190.0,0.58651229]
[1750174304109,0.13872473,104200.0,104190.0,0.68275405]
[1750174304316,0.03217414,104200.0,104190.0,0.69075405]
[1750174304530,0.00247414,104200.0,104190.0,0.69675405]
[1750174305170,0.00147414,104200.0,104190.0,0.69075405]
[1750174305375,0.00047414,104200.0,104190.0,0.89703405]
[1750174305589,0.00147414,104200.0,104190.0,0.90203405]
[1750174305805,0.06777414,104200.0,104190.0,0.90603405]
[1750174306011,0.06577414,104200.0,104190.0,0.90203405]
[1750174306241,0.06577414,104200.0,104190.0,0.68775405]
[1750174306456,0.06777414,104200.0,104190.0,0.90675405]
[1750174308436,0.03537414,104200.0,104190.0,0.69275405]
[1750174308896,0.03537414,104200.0,104190.0,0.90599405]